{"text_format":"3","workbook":"xlsx","n_sheets":2,"sheets":["Spis wyposażenia","Ustawienia"],"not_rendered":{"defined_names":4},"read":"whole","date_system":"1900"}

{"sheet":"Spis wyposażenia","index":0,"n_rows":35,"n_cols":6,"rows_kept":35,"merged":[[0,1,2,2],[0,4,0,5]]}
[]
[{"$nulls":4},"Wyróżnij pozycje starsze niż:"]
[{"$nulls":4},4]
[]
[null,"ID SPRZĘTU","NAZWA POZYCJI","PRZYPISANO DO","DATA WYDANIA","WIEK POZYCJI"]
[null,"POZYCJA0001","krzesło","Pracownik 1",{"$f":"TODAY()-25","v":"2012-10-27"},{"$f":"IF(tbl_Spis_wyposażenia[[#This Row],[DATA WYDANIA]]<>\"\",TODAY()-tbl_Spis_wyposażenia[[#This Row],[DATA WYDANIA]],\"\")","v":{"v":25,"d":"25 d."}}]
[null,"POZYCJA0002","drukarka laserowa","Pracownik 2",{"$f":"TODAY()-479","v":"2011-07-31"},{"$f":"IF(tbl_Spis_wyposażenia[[#This Row],[DATA WYDANIA]]<>\"\",TODAY()-tbl_Spis_wyposażenia[[#This Row],[DATA WYDANIA]],\"\")","v":{"v":479,"d":"479 d."}}]
[null,"POZYCJA0003","skaner","Pracownik 3",{"$f":"TODAY()-177","v":"2012-05-28"},{"$f":"IF(tbl_Spis_wyposażenia[[#This Row],[DATA WYDANIA]]<>\"\",TODAY()-tbl_Spis_wyposażenia[[#This Row],[DATA WYDANIA]],\"\")","v":{"v":177,"d":"177 d."}}]
[null,"POZYCJA0004","drukarka laserowa","Pracownik 7",{"$f":"TODAY()-18","v":"2012-11-03"},{"$f":"IF(tbl_Spis_wyposażenia[[#This Row],[DATA WYDANIA]]<>\"\",TODAY()-tbl_Spis_wyposażenia[[#This Row],[DATA WYDANIA]],\"\")","v":{"v":18,"d":"18 d."}}]
[null,"POZYCJA0005","ekspres do kawy","Pracownik 20",{"$f":"TODAY()-227","v":"2012-04-08"},{"$f":"IF(tbl_Spis_wyposażenia[[#This Row],[DATA WYDANIA]]<>\"\",TODAY()-tbl_Spis_wyposażenia[[#This Row],[DATA WYDANIA]],\"\")","v":{"v":227,"d":"227 d."}}]
[null,"POZYCJA0006","skaner","Pracownik 14",{"$f":"TODAY()-50","v":"2012-10-02"},{"$f":"IF(tbl_Spis_wyposażenia[[#This Row],[DATA WYDANIA]]<>\"\",TODAY()-tbl_Spis_wyposażenia[[#This Row],[DATA WYDANIA]],\"\")","v":{"v":50,"d":"50 d."}}]
[null,"POZYCJA0007","stół","Pracownik 4",{"$f":"TODAY()-120","v":"2012-07-24"},{"$f":"IF(tbl_Spis_wyposażenia[[#This Row],[DATA WYDANIA]]<>\"\",TODAY()-tbl_Spis_wyposażenia[[#This Row],[DATA WYDANIA]],\"\")","v":{"v":120,"d":"120 d."}}]
[null,"POZYCJA0008","kopiarka","Pracownik 12",{"$f":"TODAY()-499","v":"2011-07-11"},{"$f":"IF(tbl_Spis_wyposażenia[[#This Row],[DATA WYDANIA]]<>\"\",TODAY()-tbl_Spis_wyposażenia[[#This Row],[DATA WYDANIA]],\"\")","v":{"v":499,"d":"499 d."}}]
[null,"POZYCJA0009","dodatkowy monitor","Pracownik 8",{"$f":"TODAY()-30","v":"2012-10-22"},{"$f":"IF(tbl_Spis_wyposażenia[[#This Row],[DATA WYDANIA]]<>\"\",TODAY()-tbl_Spis_wyposażenia[[#This Row],[DATA WYDANIA]],\"\")","v":{"v":30,"d":"30 d."}}]
[null,"POZYCJA0010","biała tablica","Pracownik 19",{"$f":"TODAY()-50","v":"2012-10-02"},{"$f":"IF(tbl_Spis_wyposażenia[[#This Row],[DATA WYDANIA]]<>\"\",TODAY()-tbl_Spis_wyposażenia[[#This Row],[DATA WYDANIA]],\"\")","v":{"v":50,"d":"50 d."}}]
[null,"POZYCJA0011","kopiarka","Pracownik 12",{"$f":"TODAY()-450","v":"2011-08-29"},{"$f":"IF(tbl_Spis_wyposażenia[[#This Row],[DATA WYDANIA]]<>\"\",TODAY()-tbl_Spis_wyposażenia[[#This Row],[DATA WYDANIA]],\"\")","v":{"v":450,"d":"450 d."}}]
[null,"POZYCJA0012","papeteria","Pracownik 18",{"$f":"TODAY()-420","v":"2011-09-28"},{"$f":"IF(tbl_Spis_wyposażenia[[#This Row],[DATA WYDANIA]]<>\"\",TODAY()-tbl_Spis_wyposażenia[[#This Row],[DATA WYDANIA]],\"\")","v":{"v":420,"d":"420 d."}}]
[null,"POZYCJA0013","dodatkowy monitor","Pracownik 8",{"$f":"TODAY()-250","v":"2012-03-16"},{"$f":"IF(tbl_Spis_wyposażenia[[#This Row],[DATA WYDANIA]]<>\"\",TODAY()-tbl_Spis_wyposażenia[[#This Row],[DATA WYDANIA]],\"\")","v":{"v":250,"d":"250 d."}}]
[null,"POZYCJA0014","ekspres do kawy","Pracownik 9",{"$f":"TODAY()-45","v":"2012-10-07"},{"$f":"IF(tbl_Spis_wyposażenia[[#This Row],[DATA WYDANIA]]<>\"\",TODAY()-tbl_Spis_wyposażenia[[#This Row],[DATA WYDANIA]],\"\")","v":{"v":45,"d":"45 d."}}]
[null,"POZYCJA0015","papeteria","Pracownik 13",{"$f":"TODAY()-502","v":"2011-07-08"},{"$f":"IF(tbl_Spis_wyposażenia[[#This Row],[DATA WYDANIA]]<>\"\",TODAY()-tbl_Spis_wyposażenia[[#This Row],[DATA WYDANIA]],\"\")","v":{"v":502,"d":"502 d."}}]
[null,"POZYCJA0016","skaner","Pracownik 1",{"$f":"TODAY()-350","v":"2011-12-07"},{"$f":"IF(tbl_Spis_wyposażenia[[#This Row],[DATA WYDANIA]]<>\"\",TODAY()-tbl_Spis_wyposażenia[[#This Row],[DATA WYDANIA]],\"\")","v":{"v":350,"d":"350 d."}}]
[null,"POZYCJA0017","kopiarka","Pracownik 19",{"$f":"TODAY()-125","v":"2012-07-19"},{"$f":"IF(tbl_Spis_wyposażenia[[#This Row],[DATA WYDANIA]]<>\"\",TODAY()-tbl_Spis_wyposażenia[[#This Row],[DATA WYDANIA]],\"\")","v":{"v":125,"d":"125 d."}}]
[null,"POZYCJA0018","biała tablica","Pracownik 15",{"$f":"TODAY()-90","v":"2012-08-23"},{"$f":"IF(tbl_Spis_wyposażenia[[#This Row],[DATA WYDANIA]]<>\"\",TODAY()-tbl_Spis_wyposażenia[[#This Row],[DATA WYDANIA]],\"\")","v":{"v":90,"d":"90 d."}}]
[null,"POZYCJA0019","krzesło","Pracownik 16",{"$f":"TODAY()-730","v":"2010-11-22"},{"$f":"IF(tbl_Spis_wyposażenia[[#This Row],[DATA WYDANIA]]<>\"\",TODAY()-tbl_Spis_wyposażenia[[#This Row],[DATA WYDANIA]],\"\")","v":{"v":730,"d":"730 d."}}]
[null,"POZYCJA0020","ścierka do kurzu (1 zestaw)","Pracownik 3",{"$f":"TODAY()-540","v":"2011-05-31"},{"$f":"IF(tbl_Spis_wyposażenia[[#This Row],[DATA WYDANIA]]<>\"\",TODAY()-tbl_Spis_wyposażenia[[#This Row],[DATA WYDANIA]],\"\")","v":{"v":540,"d":"540 d."}}]
[null,"POZYCJA0021","drukarka laserowa","Pracownik 7",{"$f":"TODAY()-18","v":"2012-11-03"},{"$f":"IF(tbl_Spis_wyposażenia[[#This Row],[DATA WYDANIA]]<>\"\",TODAY()-tbl_Spis_wyposażenia[[#This Row],[DATA WYDANIA]],\"\")","v":{"v":18,"d":"18 d."}}]
[null,"POZYCJA0022","komputer przenośny","Pracownik 8",{"$f":"TODAY()-283","v":"2012-02-12"},{"$f":"IF(tbl_Spis_wyposażenia[[#This Row],[DATA WYDANIA]]<>\"\",TODAY()-tbl_Spis_wyposażenia[[#This Row],[DATA WYDANIA]],\"\")","v":{"v":283,"d":"283 d."}}]
[null,"POZYCJA0023","papeteria","Pracownik 9",{"$f":"TODAY()-479","v":"2011-07-31"},{"$f":"IF(tbl_Spis_wyposażenia[[#This Row],[DATA WYDANIA]]<>\"\",TODAY()-tbl_Spis_wyposażenia[[#This Row],[DATA WYDANIA]],\"\")","v":{"v":479,"d":"479 d."}}]
[null,"POZYCJA0024","drukarka laserowa","Pracownik 19",{"$f":"TODAY()-355","v":"2011-12-02"},{"$f":"IF(tbl_Spis_wyposażenia[[#This Row],[DATA WYDANIA]]<>\"\",TODAY()-tbl_Spis_wyposażenia[[#This Row],[DATA WYDANIA]],\"\")","v":{"v":355,"d":"355 d."}}]
[null,"POZYCJA0025","stół","Pracownik 7",{"$f":"TODAY()-28","v":"2012-10-24"},{"$f":"IF(tbl_Spis_wyposażenia[[#This Row],[DATA WYDANIA]]<>\"\",TODAY()-tbl_Spis_wyposażenia[[#This Row],[DATA WYDANIA]],\"\")","v":{"v":28,"d":"28 d."}}]
[null,"POZYCJA0026","biała tablica","Pracownik 8",{"$f":"TODAY()-28","v":"2012-10-24"},{"$f":"IF(tbl_Spis_wyposażenia[[#This Row],[DATA WYDANIA]]<>\"\",TODAY()-tbl_Spis_wyposażenia[[#This Row],[DATA WYDANIA]],\"\")","v":{"v":28,"d":"28 d."}}]
[null,"POZYCJA0027","komputer przenośny","Pracownik 19",{"$f":"TODAY()-736","v":"2010-11-16"},{"$f":"IF(tbl_Spis_wyposażenia[[#This Row],[DATA WYDANIA]]<>\"\",TODAY()-tbl_Spis_wyposażenia[[#This Row],[DATA WYDANIA]],\"\")","v":{"v":736,"d":"736 d."}}]
[null,"POZYCJA0028","stół","Pracownik 12",{"$f":"TODAY()-68","v":"2012-09-14"},{"$f":"IF(tbl_Spis_wyposażenia[[#This Row],[DATA WYDANIA]]<>\"\",TODAY()-tbl_Spis_wyposażenia[[#This Row],[DATA WYDANIA]],\"\")","v":{"v":68,"d":"68 d."}}]
[null,"POZYCJA0029","skaner","Pracownik 14",{"$f":"TODAY()-67","v":"2012-09-15"},{"$f":"IF(tbl_Spis_wyposażenia[[#This Row],[DATA WYDANIA]]<>\"\",TODAY()-tbl_Spis_wyposażenia[[#This Row],[DATA WYDANIA]],\"\")","v":{"v":67,"d":"67 d."}}]
[null,"POZYCJA0030","ekspres do kawy","Pracownik 3",{"$f":"TODAY()-149","v":"2012-06-25"},{"$f":"IF(tbl_Spis_wyposażenia[[#This Row],[DATA WYDANIA]]<>\"\",TODAY()-tbl_Spis_wyposażenia[[#This Row],[DATA WYDANIA]],\"\")","v":{"v":149,"d":"149 d."}}]

{"sheet":"Ustawienia","index":1,"n_rows":23,"n_cols":4,"rows_kept":23}
[]
[]
[null,"PRACOWNICY",null,"POZYCJE"]
[null,"Pracownik 1",null,"krzesło"]
[null,"Pracownik 2",null,"ekspres do kawy"]
[null,"Pracownik 3",null,"kopiarka"]
[null,"Pracownik 4",null,"komputer stacjonarny"]
[null,"Pracownik 5",null,"ścierka do kurzu (1 zestaw)"]
[null,"Pracownik 6",null,"dodatkowy monitor"]
[null,"Pracownik 7",null,"drukarka atramentowa"]
[null,"Pracownik 8",null,"komputer przenośny"]
[null,"Pracownik 9",null,"drukarka laserowa"]
[null,"Pracownik 10",null,"markery (zestaw trzech)"]
[null,"Pracownik 11",null,"skaner"]
[null,"Pracownik 12",null,"papeteria"]
[null,"Pracownik 13",null,"stół"]
[null,"Pracownik 14",null,"dysk USB"]
[null,"Pracownik 15",null,"biała tablica"]
[null,"Pracownik 16"]
[null,"Pracownik 17"]
[null,"Pracownik 18"]
[null,"Pracownik 19"]
[null,"Pracownik 20"]